Cogmind - Beta 17.1 @@@ ROGUE MODE // 2026.09.16 @ 03:36:14 Player: eph7ra Result: Destroyed by H-66 Slayer with Heavy Assault Rifle Performance ------------- Evolutions (4) 2000 Regions Visited (5) 1000 Robots Destroyed (113) 565 Value Destroyed (3409) 3409 Prototype IDs (2) 40 Alien Tech Used (0) 0 Bonus (13) 13 TOTAL SCORE: 7027 Bonus ------- High Alert Combat Kills 13 Cogmind --------- Core Integrity 0/850 Matter 254/300 Energy 100/100 System Corruption 0% Temperature Cool (0) Movement Core (1350) Ox26 Location -6/Factory Parts ------- > --- POWER (1) -------- (None) > --- PROPULSION (4) --- (None) > --- UTILITY (8) ------ Huge Storage Unit Improved Signal Interpreter Core Analyzer Core Analyzer > --- WEAPON (2) ------- (None) > --- INVENTORY (25) --- Heavy Ion Engine Cooled Deuterium Engine Micro Nuclear Core Advanced Cooling System Advanced Cooling System Coolant Injector Core Analyzer Core Analyzer Matter Filter Weapon Shielding Improved Light Armor Plating Layered Light Armor Plating Layered Light Armor Plating Minigun Mini Grenade Launcher Scythe Peak State ------------ > --- POWER ------------ Micro Nuclear Core > --- PROPULSION ------- Armored Huge Wheel Armored Huge Wheel > --- UTILITY ---------- Advanced Heat Sink Huge Storage Unit Improved Sensor Array Improved Signal Interpreter Advanced Targeting Computer Core Analyzer Core Analyzer Layered Light Armor Plating > --- WEAPON ----------- Precision Assault Rifle Advanced Assault Cannon > --- INVENTORY -------- Heavy Ion Engine Cooled Deuterium Engine Micro Nuclear Core Micro Nuclear Core Advanced Cooling System Advanced Cooling System Coolant Injector Core Analyzer Core Analyzer Matter Filter Weapon Shielding Hardened Heavy Armor Plating Improved Light Armor Plating Layered Light Armor Plating Layered Light Armor Plating Gatling Laser Minigun Gauss Cannon Mini Grenade Launcher Scythe [Rating: 64] Favorites ----------- Power Nuclear Core Engine Light Ion Engine Power Core Nuclear Core Propulsion Titanium Leg Treads Light Treads Leg Titanium Leg Wheel Armored Huge Wheel Utility Signal Interpreter Device Advanced Heat Sink Storage Huge Storage Unit Processor Signal Interpreter Hackware Hacking Suite Protection Improved Light Armor Plating Weapon Improved Assault Rifle Energy Gun Small Laser Ballistic Gun Improved Assault Rifle Ballistic Cannon Advanced Assault Cannon Launcher Mini Grenade Launcher Slashing Weapon Scythe Build | -11 -10 -9 -8 -7 -6 ------- Run | Yrd Mat Mat Mat Fac Fac Slots Evolved 8 | . . 2 2 2 2 Power . | . . . . . . Propulsion 2 | . . 1 1 . . Utility 6 | . . 1 1 2 2 Weapon . | . . . . . . Parts Attached 68 | 6 7 11 17 18 9 Power 11 | 1 1 2 3 2 2 Engine 8 | 1 1 2 3 1 . Core 3 | . . . . 1 2 Reactor . | . . . . . . Propulsion 16 | 2 2 4 5 3 . Treads 4 | . . . 3 1 . Leg 9 | 2 2 4 1 . . Wheel 3 | . . . 1 2 . Hover . | . . . . . . Flight . | . . . . . . Utility 21 | 1 2 2 4 8 4 Device 3 | . . . 1 1 1 Storage 3 | 1 1 . 1 . . Processor 6 | . 1 . . 3 2 Hackware 1 | . . . . 1 . Protection 8 | . . 2 2 3 1 Artifact . | . . . . . . Weapon 20 | 2 2 3 5 5 3 Energy Gun 6 | 1 1 1 1 1 1 Energy Cannon . | . . . . . . Ballistic Gun 7 | 1 1 1 3 1 . Ballistic Cannon 5 | . . 1 1 2 1 Launcher 1 | . . . . 1 . Special Weapon . | . . . . . . Impact Weapon . | . . . . . . Slashing Weapon 1 | . . . . . 1 Piercing Weapon . | . . . . . . Special Melee Weapon . | . . . . . . Unidentified Prototypes 2 | . . 1 . 1 . Corrupted Parts 3 | . . 1 2 . . System Corruption 14 | . . 4 10 . . Parts Lost 43 | . 5 2 12 10 14 Power 10 | . 1 1 3 2 3 Propulsion 12 | . 2 . 4 4 2 Utility 10 | . . . 2 3 5 Weapon 11 | . 2 1 3 1 4 Highest Loss Streak 10 | . 5 1 4 5 10 To Critical Strikes 1 | . . . . . 1 Average Backups 11 | 3 6 9 11 14 19 Power 2 | . . 1 2 3 4 Propulsion 1 | 1 2 1 . . . Utility 3 | . . 1 2 5 10 Weapon 4 | . 1 4 5 4 4 Tool/Special . | . . . . . . Unused Backups 24 | . . 5 4 2 13 Power 6 | . . . 1 2 3 Propulsion 1 | . . 1 . . . Utility 11 | . . . 2 . 9 Weapon 6 | . . 4 1 . 1 Tool/Special . | . . . . . . Average Slot Usage (%) 85 | . 89 97 83 80 77 Engine 6 | . 13 11 8 1 . Core 1 | . . . . 4 5 Treads 3 | . . . 4 7 . Leg 14 | . 26 31 17 . . Wheel 4 | . . . 3 9 10 Device 5 | . . . 8 6 10 Storage 9 | . 14 11 9 7 6 Processor 12 | . 5 11 9 15 24 Hackware 1 | . . . . 3 . Protection 6 | . . 10 5 7 5 Energy Gun 3 | . 13 6 3 . 1 Ballistic Gun 9 | . 14 8 11 6 3 Ballistic Cannon 4 | . . 6 2 5 5 Peak Build Rating 64 | 6 7 22 25 56 64 Average Rating 28 | 4 6 17 19 43 56 On Entrance 18 | . 6 7 21 20 56 Avg Prop Armor Cover (%) 12 | . . . 11 20 . Naked Turns . | . . . . . . Heaviest Build 117 | 10 18 29 98 107 117 Greatest Support 68 | 20 20 51 68 68 56 Greatest Overweight (x) 38 | 1 . 1 5 27 38 Average Overweight (x) 1 | . . . 2 1 1 Largest Inventory Capacity 25 | 8 10 10 25 25 25 Average Capacity 19 | 6 9 10 23 25 25 Most Carried 22 | 4 9 10 17 22 22 Average Carried 12 | 3 6 9 11 14 19 Final Capacity 25 | 8 10 10 25 25 25 Final Carried 22 | 4 6 10 11 22 16 Class Distribution -------------------- 84% | Mutant 11% | Scavenger-Mutant 3% | Commander-Mutant Dominant Class ---------------- Mutant | -10/Materials Mutant | -9/Materials Mutant | -8/Materials Mutant | -7/Factory Mutant | -6/Factory Resources | -11 -10 -9 -8 -7 -6 ----------- Run | Yrd Mat Mat Mat Fac Fac Matter Collected 2571 | 239 122 360 572 944 334 Remotely . | . . . . . . Salvage Created 3572 | . 390 720 955 1066 441 Parts 219 | . 21 59 58 61 20 Haulers Intercepted 2 | . . 1 1 . . Recyclers Shooed . | . . . . . . Parts Field Recycled . | . . . . . . Retrieved Matter . | . . . . . . Parts Self-Destructed . | . . . . . . Prevented . | . . . . . . Parts Restored . | . . . . . . Kills | -11 -10 -9 -8 -7 -6 ------- Run | Yrd Mat Mat Mat Fac Fac Combat Hostiles Destroyed 84 | . 13 20 21 19 11 Guns 59 | . 13 12 19 10 5 Cannons 21 | . . 8 2 5 6 AOE 4 | . . . . 4 . Classes Destroyed 11 | . 2 5 2 2 . Worker 6 | . . 1 1 4 . Builder 3 | . . . 1 2 . Tunneler 2 | . . . . 2 . Hauler 2 | . . 1 1 . . Recycler 6 | . . . 1 5 . Operator 2 | . . 1 . 1 . Watcher 8 | . . 4 2 2 . Swarmer 33 | . 6 11 7 8 1 Grunt 28 | . 7 3 8 4 6 Sentry 19 | . . 6 6 3 4 Programmer 4 | . . . . 4 . Best Kill Streak 7 | . 5 5 7 6 7 Combat Bots Only 7 | . 5 5 4 5 7 Max Kills in Single Turn 2 | . 2 2 2 2 2 Gunslinging 1 | . 1 . 1 . . Exploded 2 | . . . . 2 . Melee . | . . . . . . Uniques/NPCs Destroyed . | . . . . . . Combat | -11 -10 -9 -8 -7 -6 -------- Run | Yrd Mat Mat Mat Fac Fac Hostile Shots Fired 1019 | . 93 130 179 253 364 Missed 312 | . 19 37 48 102 106 Hits 707 | . 74 93 131 151 258 Projectile 707 | . 74 93 131 151 258 Critical Strikes 14 | . . 4 6 2 2 Damage Taken 8096 | . 711 931 1903 1615 2936 Core 1697 | . 201 99 353 183 861 Absorbed by Shields . | . . . . . . Ignored by Resistances 144 | . . . . 144 . Regen/Repaired (Parts) 146 | . . . . . 146 Core Remaining (%) 60 | 100 19 75 35 73 . Volleys Fired 319 | . 46 64 90 81 38 Largest 2 | . 2 2 2 2 2 Hottest 120 | . 60 78 65 68 120 Shots Fired 592 | . 80 127 165 154 66 Gun 412 | . 80 84 141 79 28 Cannon 174 | . . 43 24 69 38 Launcher 6 | . . . . 6 . Special . | . . . . . . Kinetic 469 | . 46 89 129 148 57 Thermal 74 | . 29 . 36 . 9 Explosive 6 | . . . . 6 . Electromagnetic 43 | . 5 38 . . . Robot Hit Streak 34 | . 10 9 13 16 34 Robot Miss Streak 5 | . 4 5 4 2 2 Penetration Max 1 | . . . . . 1 Secondary Targets 4 | . 2 . 2 . . Max Gunslinging Chain 1 | . 1 . 1 . . Shots Hit Robots 374 | . 52 68 115 95 44 Core Hits 185 | . 23 36 44 52 30 Critical Kills 2 | . . . 1 1 . Critical Parts Destroyed . | . . . . . . Critical Strikes 13 | . . 2 1 9 1 Destroy 2 | . . . 1 1 . Blast 10 | . . 1 . 8 1 Corrupt 1 | . . 1 . . . Melee Attacks 10 | . . . . . 10 Impact . | . . . . . . Slashing 10 | . . . . . 10 Piercing . | . . . . . . Sneak Attacks . | . . . . . . Combat Hostiles . | . . . . . . Follow-up Attacks . | . . . . . . Damage Inflicted 7707 | . 490 1110 1862 2932 1313 Guns 4097 | . 490 643 1391 1101 472 Cannons 2929 | . . 422 435 1231 841 Explosions 584 | . . 33 . 551 . Melee . | . . . . . . Ramming 97 | . . 12 36 49 . Kinetic 5971 | . 250 756 1573 2332 1060 Thermal 831 | . 200 33 253 92 253 Explosive 459 | . . . . 459 . Electromagnetic 349 | . 40 309 . . . Impact . | . . . . . . Slashing . | . . . . . . Piercing . | . . . . . . Highest Corruption 10 | . . 4 10 . . Average Corruption 5 | . . 4 9 . . Corruption Purged . | . . . . . . Corruption Blocked . | . . . . . . Effects 33 | . . 20 13 . . Message Errors 9 | . . 7 2 . . Matter Fused 12 | . . 6 6 . . Heat Flow Errors 1 | . . 1 . . . Energy Discharges 8 | . . 5 3 . . Parts Fused 1 | . . . 1 . . Data Loss (minor) 2 | . . 1 1 . . Overload Shots . | . . . . . . Overflow Damage 173 | . . 1 10 162 . Projectiles 15 | . . 1 . 14 . Explosions 148 | . . . . 148 . Melee 10 | . . . 10 . . Knockbacks 36 | . . 5 9 12 10 Impact . | . . . . . . Kinetic 27 | . . 4 5 11 7 Secondary 9 | . . 1 4 1 3 Self-Inflicted Damage 211 | . . . 16 195 . Shots 2 | . . . . 2 . Rammed 4 | . . . 1 3 . Targets Rammed 8 | . . 2 3 3 . Kicked 4 | . . 2 2 . . Crushed . | . . . . . . Highest Temperature 575 | . 94 244 95 . 575 Average Temperature 72 | . 33 35 19 . 326 Received Heat Transfer 2608 | . 258 222 945 273 910 Effects 14 | . . . . . 14 Shutdowns 1 | . . . . . 1 Energy Bleed 3 | . . . . . 3 Interference 3 | . . . . . 3 Matter Decay 2 | . . . . . 2 Short Circuit 1 | . . . . . 1 Damage (minor) 1 | . . . . . 1 Damage (core) 3 | . . . . . 3 Siege Activations . | . . . . . . Martial Activations . | . . . . . . Shielding Activations . | . . . . . . Robots Disrupted . | . . . . . . Combat Hostiles . | . . . . . . Robots Corrupted 1 | . . . 1 . . Combat Hostiles . | . . . . . . Parts Fried 4 | . . 2 2 . . Impact Corruptions 1 | . . . 1 . . Robots Melted . | . . . . . . Combat Hostiles . | . . . . . . Parts Melted 1 | . . . 1 . . Heat Transferred 1700 | . 450 . 575 100 575 Parts Sabotaged . | . . . . . . Parts Stolen . | . . . . . . Parts Stripped . | . . . . . . Power Chain Reactions 1 | . . 1 . . . Alert | -11 -10 -9 -8 -7 -6 ------- Run | Yrd Mat Mat Mat Fac Fac Maximum Alert Level 2 | . . 1 . 2 1 Low Security (%) 81 | 100 100 81 100 62 81 Level 1 17 | . . 18 . 35 18 Level 2 . | . . . . 1 . Level 3 . | . . . . . . Level 4 . | . . . . . . Level 5 . | . . . . . . High Security . | . . . . . . Max Security . | . . . . . . Peak Influence 498 | . 108 276 141 498 249 Initial 242 | . . 35 104 41 242 Average 110 | . 42 82 86 158 158 Influence Increases 3068 | . 348 649 679 1089 303 Destroy 0b10 Robot/C 1680 | . 260 400 420 380 220 Destroy 0b10 Robot/NC 145 | . . 35 30 80 . Destroy Leader 430 | . 50 100 106 114 60 Successful Hack 87 | . 8 18 25 29 7 Disable Machine 285 | . . 75 . 210 . Anti-Garrison Action 150 | . . . . 150 . Destroy Structure 96 | . . 6 8 81 1 Lose Combat Pursuer 195 | . 30 15 90 45 15 Influence Decreases 2947 | . 264 485 835 685 678 Entered New Map 498 | . . 49 144 51 254 Time Decay 2004 | . 214 416 571 549 254 Lost Part 415 | . 50 20 120 85 140 Lost Ally 30 | . . . . . 30 Squads Dispatched 19 | . 3 1 2 8 5 Investigation 4 | . 1 . . 1 2 Extermination 3 | . . . . 3 . Reinforcement 7 | . 2 1 2 2 . Assault 2 | . . . . 2 . Garrison 3 | . . . . . 3 Intercept . | . . . . . . Searches Triggered . | . . . . . . Construction Impeded 1 | . . . . 1 . Haulers Reinforced . | . . . . . . Active Scanning Responses . | . . . . . . Cargo Convoy Interrupts . | . . . . . . Stealth | -11 -10 -9 -8 -7 -6 --------- Run | Yrd Mat Mat Mat Fac Fac Distress Signals 11 | . 1 2 3 2 3 Communications Jammed . | . . . . . . Distress Signals . | . . . . . . Times Spotted 133 | . 20 33 34 29 17 Peak Tracking Total 7 | . 5 7 6 5 5 Tactical Retreats 9 | . 1 1 4 2 1 Traps | -11 -10 -9 -8 -7 -6 ------- Run | Yrd Mat Mat Mat Fac Fac Traps Triggered 2 | . 1 . . 1 . Indirectly . | . . . . . . Trap Hack Attempts . | . . . . . . Triggered . | . . . . . . Disarmed . | . . . . . . Reprogrammed . | . . . . . . Reused . | . . . . . . Traps Extracted . | . . . . . . Installed . | . . . . . . Triggered . | . . . . . . Machines | -11 -10 -9 -8 -7 -6 ---------- Run | Yrd Mat Mat Mat Fac Fac Machines Disabled 20 | . . 5 . 15 . Max in Single Turn 7 | . . 2 . 7 . Garrison Access 1 | . . . . 1 . Machines Repaired . | . . . . . . Machines Dismantled . | . . . . . . Machines Sabotaged . | . . . . . . Overloaded Fab Kills . | . . . . . . Hacking | -11 -10 -9 -8 -7 -6 --------- Run | Yrd Mat Mat Mat Fac Fac Machines Accessed 32 | . 2 11 5 10 4 Terminals 20 | . 2 9 3 5 1 Fabricators 4 | . . . . 3 1 Repair Stations 1 | . . . . . 1 Recycling Units 2 | . . 1 1 . . Scanalyzers 4 | . . 1 1 2 . Garrison Access 1 | . . . . . 1 Total Hacks 77 | . 13 25 12 18 9 Successful 39 | . 7 14 8 8 2 Failed 37 | . 6 11 4 9 7 Catastrophic 4 | . . 1 . 2 1 Database Lockouts 1 | . . . . 1 . Manual 44 | . 9 19 8 8 . Terminals 55 | . 13 21 9 10 2 Fabricators 8 | . . . . 6 2 Repair Stations 2 | . . . . . 2 Recycling Units 3 | . . 2 1 . . Scanalyzers 6 | . . 2 2 2 . Garrison Access 3 | . . . . . 3 Terminal Hacks 7 | . 3 3 . 1 . Robot Analysis 1 | . 1 . . . . Scanalyzer Index 1 | . . 1 . . . Alert Level 1 | . . . . 1 . Locate Traps 4 | . 2 2 . . . Fabricator Hacks 4 | . . . . 4 . Network Status 1 | . . . . 1 . Build 3 | . . . . 3 . Repair Station Hacks 2 | . . . . . 2 Scan Component 1 | . . . . . 1 Repair 1 | . . . . . 1 Recycling Unit Hacks 2 | . . 1 1 . . Retrieve Matter 1 | . . 1 . . . Retrieve Components 1 | . . . 1 . . Scanalyzer 5 | . . 2 2 1 . Retrieve Study 5 | . . 2 2 1 . Garrison Access Hacks . | . . . . . . Unauthorized Hacks 19 | . 4 8 5 2 . Terminals 19 | . 4 8 5 2 . Assimilate 1 | . . . . 1 . Botnet 8 | . 2 3 2 1 . Skim 10 | . 2 5 3 . . Fabricators . | . . . . . . Repair Stations . | . . . . . . Recycling Units . | . . . . . . Scanalyzers . | . . . . . . Garrison Access . | . . . . . . Data Cores Recovered 2 | . . 1 . 1 . Used 2 | . . 1 . 1 . Hacking Detections 26 | . 1 10 2 9 4 Full Trace Events 3 | . . . . 1 2 Feedback Events . | . . . . . . Feedback Blocked . | . . . . . . Robot Schematics Acquired . | . . . . . . Robots Built 4 | . . . . 4 . Authchips . | . . . . . . Time 81 | . . . . 81 . Total Robot Build Rating 4 | . . . . 4 . Part Schematics Acquired . | . . . . . . Parts Built 4 | . . . . 4 . Authchips . | . . . . . . Time 148 | . . . . 148 . Total Part Build Rating 20 | . . . . 20 . Part Studies Acquired 4 | . . 1 2 1 . Parts Repaired 1 | . . . . . 1 Time 70 | . . . . . 70 Parts Recycled . | . . . . . . Recycled Matter . | . . . . . . Retrieved Matter 69 | . . 69 . . . Retrieved Components 9 | . . . 9 . . Parts Scanalyzed . | . . . . . . Part Schematics Acquired . | . . . . . . Parts Damaged . | . . . . . . Bothacking | -11 -10 -9 -8 -7 -6 ------------ Run | Yrd Mat Mat Mat Fac Fac Used RIF Installer . | . . . . . . Robots Hacked . | . . . . . . Non-combat . | . . . . . . Combat . | . . . . . . Robot Hacks Applied . | . . . . . . Relay Couplers Released 1 | . . . . 1 . Machine Destruction 1 | . . . . 1 . Fabnet Peak Effective % . | . . . . . . Robots Rewired . | . . . . . . Allies Hacked . | . . . . . . Hacks Repelled . | . . . . . . Allies | -11 -10 -9 -8 -7 -6 -------- Run | Yrd Mat Mat Mat Fac Fac Total Allies 5 | . . . . 5 . Largest Group 5 | . . . . 5 3 Highest-Rated Group 34 | . . . . 34 18 Highest-Rated Ally 10 | . . . . 10 6 Total Orders . | . . . . . . Ally Attacks . | . . . . . . Total Damage . | . . . . . . Kills . | . . . . . . Allies Corrupted . | . . . . . . Allies Melted . | . . . . . . Intel | -11 -10 -9 -8 -7 -6 ------- Run | Yrd Mat Mat Mat Fac Fac Active Infowar (turns) 2122 | . . . 1632 53 437 Sensors 2122 | . . . 1632 53 437 Robot Analysis Total 1 | . 1 . . . . Derelict Logs Recovered . | . . . . . . Drone Launches . | . . . . . . Drone Recoveries . | . . . . . . Exploration | -11 -10 -9 -8 -7 -6 ------------- Run | Yrd Mat Mat Mat Fac Fac Turns Passed 6746 | 61 648 1492 1732 2265 548 Spaces Moved 3414 | 48 381 849 720 1168 248 Core 18 | 14 . . . 1 3 Treads 249 | . . . 4 245 . Legs 1691 | 34 381 849 427 . . Wheels 1456 | . . . 289 922 245 Hover . | . . . . . . Flight . | . . . . . . Fastest Speed 50 | 50 120 120 130 105 105 Average Speed 147 | 100 120 132 193 147 126 Slowest Speed 1950 | 120 120 190 480 1400 1950 Overloaded Moves . | . . . . . . Propulsion Burnouts . | . . . . . . Robots Hopped . | . . . . . . Potential Cave-ins . | . . . . . . Cave-ins Triggered . | . . . . . . Exploration Rate (%) 36 | 3 58 71 49 28 9 Regions Visited 5 Branch Regions . Pre-discovered Areas 1 | . . 1 . . . Known Exits Taken 3 | . 1 1 1 . . Unknown Exits Taken 2 | 1 . . . 1 . Scrap Searched . | . . . . . . Spaces Dug . | . . . . . . Terrain Destroyed 96 | . . 3 4 88 1 Melee . | . . . . . . Projectile 24 | . . 3 4 16 1 AOE 72 | . . . . 72 . Terrain Rammed . | . . . . . . Walls Destroyed . | . . . . . . Machines Disabled . | . . . . . . Actions | -11 -10 -9 -8 -7 -6 --------- Run | Yrd Mat Mat Mat Fac Fac Total 4513 | 57 500 1097 894 1563 402 Wait 596 | . 60 148 44 251 93 Move 3409 | 47 380 848 719 1167 248 Hop . | . . . . . . Pick Up 61 | 4 6 12 13 24 2 Fast Attach 26 | 6 2 4 8 5 1 Attach 32 | . 5 2 7 10 8 Detach 3 | . 1 . . 2 . Swap 11 | . . 5 2 3 1 Drop 30 | . . 12 8 9 1 Fire 319 | . 46 64 90 81 38 Melee 10 | . . . . . 10 Ram 4 | . . . 1 3 . Kick 4 | . . 2 2 . . Crush . | . . . . . . Escape Stasis 8 | . . . . 8 . Rewire . | . . . . . . Trap . | . . . . . . Miscellaneous . | . . . . . . Route ------- -11/Scrapyard -10/Materials (discovered 2 exits: *Mat / [*Min]) -9/Materials (discovered 4 exits: *Mat x3 / [*Min]) -8/Materials (discovered 2 exits: *Fac x2) -7/Factory (discovered 2 exits: *Fac / Sto) -6/Factory History --------- Turn | Location | Event 10 | -11/Scrapyard | Discovered new exit (range 16) 62 | -11/Scrapyard | Entered Materials 134 | -10/Materials | Discovered new exit (range 6) 299 | -10/Materials | Discovered new exit (range 12) 314 | -10/Materials | Build established: Mutant 510 | -10/Materials | Identified exit to Materials 639 | -10/Materials | Core integrity fell below 50% 651 | -10/Materials | Core integrity fell below 20% 674 | -10/Materials | Lost 5 parts (1p2n2w) 710 | -10/Materials | Entered another Materials area 710 | -9/Materials | Evolved 2 slots: Propulsion x1, Utility x1 958 | -9/Materials | Discovered new exit (range 15) 1163 | -9/Materials | Discovered new exit (range 8) 1260 | -9/Materials | Discovered new exit (range 13) 1319 | -9/Materials | Learned Storage emergency access door positions 1374 | -9/Materials | Learned Storage stockpile data 1385 | -9/Materials | Identified exit to Materials 1385 | -9/Materials | Learned location of 2 exits from Materials 1407 | -9/Materials | Learned location of 1 exit from Recycling 1440 | -9/Materials | Loaded intel: 10 trap records 2202 | -9/Materials | Entered another Materials area 2202 | -8/Materials | Evolved 2 slots: Propulsion x1, Utility x1 2203 | -8/Materials | Identified exit to Factory 2541 | -8/Materials | Lost 3 parts (1n1u1w) 3327 | -8/Materials | Lost 3 parts (1p1n1w) 3356 | -8/Materials | Core integrity fell below 50% 3367 | -8/Materials | Lost 4 parts (1p1n1u1w) 3643 | -8/Materials | System corruption reached 10% 3934 | -8/Materials | Entered Factory 3934 | -7/Factory | Evolved 2 slots: Utility x2 3935 | -7/Factory | Identified exit to Storage 3982 | -7/Factory | Build established: Scavenger-Mutant 4045 | -7/Factory | Lost 5 parts (1p1n2u1w) 4470 | -7/Factory | Lost 3 parts (1p2n) 4739 | -7/Factory | Build established: Mutant 5134 | -7/Factory | Fabricated Adv. Cooling System (x2) 5288 | -7/Factory | Fabricated Core Analyzer (x2) 5802 | -7/Factory | Central database locked down 5943 | -7/Factory | Fabricated K-01 Serf (x4) 6070 | -7/Factory | Discovered new exit (range 7) 6199 | -7/Factory | Entered another Factory area 6199 | -6/Factory | Accompanied by 3 allies 6199 | -6/Factory | Evolved 2 slots: Utility x2 6281 | -6/Factory | Repaired Prc. Assault Rifle 6551 | -6/Factory | Spotted B-75 Beast 6689 | -6/Factory | Core integrity fell below 50% 6692 | -6/Factory | Lost 10 parts (2p2n4u2w) 6713 | -6/Factory | Destroyed 7 combat bots 6717 | -6/Factory | Core integrity fell below 20% 6747 | -6/Factory | Destroyed by H-66 Slayer with Heavy Assault Rifle Last Messages --------------- 06730_ K-01 Serf collects debris. 06731_ Slug penetrates Wall. 06733_ K-01 Serf collects debris. 06733_ Slug penetrates Wall. 06736_ K-01 Serf collects debris. 06737_ Slug penetrates Wall. 06737_ Penetrated by Slug. 06737_ Hrd. Heavy Armor Plating destroyed. 06738_ Slug penetrates Wall. 06739_ K-01 Serf collects debris. 06740_ Broken Mic. Nuclear Core destroyed. 06740_ Slug penetrates Wall. 06740_ Penetrated by Slug. 06741_ Slug penetrates Wall. 06744_ K-01 Serf collects debris. 06745_ Slug penetrates Wall. 06746_ Gatling Laser destroyed. 06747_ Wall collapses. 06747_ Slug penetrates Wall. 06747_ Penetrated by Slug. Map ----- +----------------------------------------------------+ | ??????????????# #????????????????????????????? | | ??????????????# #????????????????????????????? | | ??????????????# ########?????????????????????? | | ??????????????# %##############????????? | | ??????????????# # #????????? | | ??????????????# "" %+ #????????? | | ??????????????# "" # """"""" #????????? | | ??????????????# F" # """"""" #????????? | | ??????????????# "" # """"""" #????????? | | ??????????????# # """"""" #????????? | | ??????????????# ^ # #????????? | | ??????????????# # """"""" #????????? | | ??????????????# # """"""" #????????? | | ???????????# # """"""" #????????? | | ? ?????????# ^ # """"""" #????????? | | ###+#######???# """"""" # #????????? | | #???# """"""" ###+##########????????? | | ] #???# """"""" #??????????????? | | """""" ##### """"""" #??????????##??? | | """""" + #?????????? ###? | | """""" ## #????????? "? | | """""" ## % #????????? ?? | | ! ## ##########g##### #???###?? """ | | """""" ## #?????# h # #####"## """ | | """""" ## #?????# "% %% # / """ | | """""" ## #?????# """%@! ;h # | | """""" ## #?????# G= !=%# """" + | | ## #?????# """k%= # "" % # | | ############ ??????# " !% # "" # /! | | ???????????? ??????# # " " !! #? !! | | ???????????? ??????# !#% " " !! #? | | ???????????? ??????# # ^ #?? | | ???????????? ??????####+##### #??###### | | ???????????? ?????????? ?? #???????? | | ???????????? ??????????##??## " #???????? | | ????????????????????????????# ^ #???????? | | ????????????????????????????# #???????? | | ????????????????????????????# #???????? | | ????????????????????????????? ???????? | | ????????????????????????????? ???????? | | ????????????????????????????? ???????? | | ????????????????????????????? ????????? | | ????????????????????????????? ???? ????????? | | ?????????????????????????????????????? #????????? | | ?????????????????????????????????????????????????? | | ?????????????????????????????????????????????????? | | ?????????????????????????????????????????????????? | | ?????????????????????????????????????????????????? | | ?????????????????????????????????????????????????? | | ?????????????????????????????????????????????????? | +----------------------------------------------------+ Best States ------------- Heat Dissipation 56 Energy Generation 15 Energy Capacity 265 Matter Stores 300 Matter Capacity 300 Sight Range 16 Robot Scan Range 15 Terrain Scan Density 10 Armor Coverage 600 Resistance: KI 20 Evasion (%) 55 Targeting Accuracy 8 Target Analysis 5 Core Analysis 9 Recoil Reduction 4 Offensive Hacking 10 Item Schematics ----------------- None Robot Schematics ------------------ None Fabricated ------------ Adv. Cooling System | x2 | -7/Factory | Preloaded Core Analyzer | x2 | -7/Factory | Preloaded K-01 Serf | x4 | -7/Factory | Preloaded Repaired ---------- Prc. Assault Rifle | 8% | -6/Factory Studied --------- Com. Wheel | -9/Materials | Hacked Hvy. Assault Rifle | -8/Materials | Hacked Lgt. Ion Engine | -8/Materials | Hacked Arm. Huge Wheel | -7/Factory | Hacked Alien Tech Used ----------------- None Achievements -------------- None Challenges ------------ None Game ------ Seed LinkedCooledRipper Manual? 0 Play Time 00:56:48 Cumulative 40.2 hours Start 2026.09.16 @ 02:33:12 End 2026.09.16 @ 03:36:14 Sessions 1 Manual Loads 0 Difficulty Rogue Special Mode None Game No. 62 Rogue 57 Adventurer 1 Explorer 4 Win Type - Total 1 Types 1/0/0/0/0/0/0/0/0/0 Lore% 13 Gallery% 27 Achievement% 24 Wizard Run 0 Options --------- Layout 0 ASCII 0 Keyboard 0 Movement Arrows Keybinds 0 Fullscreen 1 Font 18/SmallcapsGlow Map View 76x50 Zoom Use 0% Tactical HUD 1 Map Filters NONE Filters NONE Steam 1 RUN: 1ab02a59-f579-4f2f-a34a-0e16c532e8e7